Cogmind - Beta 12 @@@ ROGUE MODE // 2023.12.06 @ 11:54:06 Player: Triffids Result: Destroyed by Y-45 Defender with Heavy Assault Rifle Performance ------------- Evolutions (2) 1000 Regions Visited (4) 800 Robots Destroyed (35) 175 Value Destroyed (929) 929 Prototype IDs (4) 80 Alien Tech Used (0) 0 Bonus (200) 200 TOTAL SCORE: 3184 Bonus ------- Entered Garrisons 200 Cogmind --------- Core Integrity 0/550 Matter 300/300 Energy 100/100 System Corruption 0% Temperature Cool (6) Movement Core (50) Location -8/Garrison Parts ------- > --- POWER (1) -------- (None) > --- PROPULSION (4) --- (None) > --- UTILITY (3) ------ (None) > --- WEAPON (3) ------- (None) > --- INVENTORY (5) ---- Ion Engine Target Analyzer ECM Suite Hacking Suite Peak State ------------ > --- POWER ------------ Improved Ion Engine > --- PROPULSION ------- Aluminum Leg Aluminum Leg Aluminum Leg Aluminum Leg > --- UTILITY ---------- Cooling System Medium Storage Unit Hardened Light Armor Plating > --- WEAPON ----------- Field Laser Beam Cannon High-powered Shotgun > --- INVENTORY -------- Ion Engine Aluminum Leg Advanced Visual Processing Unit Seismic Detector Target Analyzer ECM Suite Light Armor Plating Hacking Suite Particle Gun Grenade Launcher [Rating: 19] Favorites ----------- Power Improved Ion Engine Engine Improved Ion Engine Propulsion Aluminum Leg Treads Improved Treads Leg Aluminum Leg Utility Medium Storage Unit Device Seismic Detector Storage Medium Storage Unit Protection Medium Armor Plating Weapon Particle Gun Energy Gun Particle Gun Energy Cannon Beam Cannon Ballistic Gun High-powered Shotgun Launcher Grenade Launcher Build | -11 -10 -9 -8 -8 ------- Run | Jun Mat Mat Mat Gar Slots Evolved 4 | . . 2 2 . Power . | . . . . . Propulsion 2 | . . 2 . . Utility 1 | . . . 1 . Weapon 1 | . . . 1 . Parts Attached 42 | 8 3 7 17 7 Power 3 | 1 . 1 1 . Engine 3 | 1 . 1 1 . Core . | . . . . . Reactor . | . . . . . Propulsion 8 | 2 . 3 2 1 Treads 1 | . . 1 . . Leg 7 | 2 . 2 2 1 Wheel . | . . . . . Hover . | . . . . . Flight . | . . . . . Utility 18 | 2 1 3 9 3 Device 12 | 1 1 2 6 2 Storage 2 | 1 . 1 . . Processor . | . . . . . Hackware . | . . . . . Protection 4 | . . . 3 1 Artifact . | . . . . . Weapon 13 | 3 2 . 5 3 Energy Gun 7 | 2 1 . 3 1 Energy Cannon 1 | . 1 . . . Ballistic Gun 4 | 1 . . 2 1 Ballistic Cannon . | . . . . . Launcher 1 | . . . . 1 Special Weapon . | . . . . . Impact Weapon . | . . . . . Slashing Weapon . | . . . . . Piercing Weapon . | . . . . . Special Melee Weapon . | . . . . . Unidentified Prototypes . | . . . . . Parts Lost 12 | . 1 . 1 10 Power 1 | . . . . 1 Propulsion 3 | . . . . 3 Utility 3 | . 1 . . 2 Weapon 5 | . . . 1 4 Highest Loss Streak 10 | . 1 . 1 10 To Critical Strikes . | . . . . . Average Slot Usage (%) 95 | . 99 92 100 82 Engine 10 | . 14 11 9 7 Treads 1 | . . 3 . . Leg 32 | . 28 33 36 29 Device 10 | . 13 11 9 8 Storage 10 | . 14 11 9 8 Protection 3 | . . . 9 7 Energy Gun 15 | . 23 11 17 7 Energy Cannon 8 | . 4 11 9 7 Naked Turns 19 | . . . . 19 Heaviest Build 35 | 13 17 25 35 33 Greatest Support 40 | 20 20 40 40 40 Greatest Overweight (x) 1 | 1 . . . . Average Overweight (x) . | . . . . . Largest Inventory Capacity 10 | 8 8 10 10 10 Average Capacity 9 | 7 8 8 10 9 Most Carried 10 | 5 8 10 10 10 Average Carried 7 | 2 4 8 9 8 Final Capacity 10 | 8 8 10 10 5 Final Carried 10 | 2 8 10 10 4 Class Distribution -------------------- 57% | Mutant 38% | Scavenger-Tank 4% | Scavenger-Mutant Dominant Class ---------------- Mutant | -10/Materials Mutant | -9/Materials Scavenger-Tank | -8/Materials Scavenger-Tank | -8/Garrison Resources | -11 -10 -9 -8 -8 ----------- Run | Jun Mat Mat Mat Gar Matter Collected 633 | 280 15 80 172 86 Remotely . | . . . . . Salvage Created 1049 | 54 215 182 432 166 Parts 66 | 8 8 13 17 20 Haulers Intercepted . | . . . . . Recyclers Shooed 3 | 1 2 . . . Parts Field Recycled . | . . . . . Retrieved Matter . | . . . . . Parts Self-Destructed . | . . . . . Prevented . | . . . . . Kills | -11 -10 -9 -8 -8 ------- Run | Jun Mat Mat Mat Gar Combat Hostiles Destroyed 29 | . 5 3 9 12 Guns 14 | . 4 2 4 4 Cannons 7 | . 1 1 4 1 AOE 8 | . . . 1 7 Classes Destroyed 6 | 1 3 2 . . Tunneler 4 | 3 . 1 . . Recycler 1 | . 1 . . . Watcher 1 | . . 1 . . Swarmer 13 | . 3 . . 10 Grunt 11 | . 2 1 6 2 Sentry 5 | . . 2 3 . Best Kill Streak 8 | 2 3 1 4 8 Combat Bots Only 8 | . 3 1 4 8 Max Kills in Single Turn 4 | 1 1 1 1 4 Gunslinging . | . . . . . Exploded 3 | . . . 1 3 Melee . | . . . . . Uniques/NPCs Destroyed . | . . . . . Combat | -11 -10 -9 -8 -8 -------- Run | Jun Mat Mat Mat Gar Damage Taken 2232 | . 153 58 531 1490 Core 599 | . 29 14 90 466 Absorbed by Shields 30 | . . . . 30 Core Remaining (%) 94 | 100 88 96 . . Volleys Fired 60 | 5 14 11 21 9 Largest 3 | 2 2 2 3 3 Hottest 190 | 80 100 125 190 153 Shots Fired 145 | 10 27 22 63 23 Gun 94 | 10 18 11 42 13 Cannon 48 | . 9 11 21 7 Launcher 3 | . . . . 3 Special . | . . . . . Kinetic 10 | . . . 4 6 Thermal 123 | 10 27 22 50 14 Explosive 3 | . . . . 3 Electromagnetic 9 | . . . 9 . Robot Hit Streak 13 | 6 13 10 13 4 Robot Miss Streak 3 | 1 1 1 3 3 Penetration Max . | . . . . . Secondary Targets . | . . . . . Shots Hit Robots 100 | 7 19 15 47 12 Core Hits 62 | 4 10 7 19 22 Critical Kills . | . . . . . Critical Parts Destroyed . | . . . . . Critical Strikes 1 | . . . 1 . Burn 1 | . . . 1 . Melee Attacks . | . . . . . Impact . | . . . . . Slashing . | . . . . . Piercing . | . . . . . Sneak Attacks . | . . . . . Combat Hostiles . | . . . . . Follow-up Attacks . | . . . . . Damage Inflicted 2210 | 86 256 252 934 682 Guns 1026 | 86 153 112 470 205 Cannons 538 | . 103 140 243 52 Explosions 639 | . . . 221 418 Melee . | . . . . . Ramming 7 | . . . . 7 Kinetic 145 | . . . 25 120 Thermal 1567 | 86 256 252 836 137 Explosive 418 | . . . . 418 Electromagnetic 73 | . . . 73 . Impact . | . . . . . Slashing . | . . . . . Piercing . | . . . . . Highest Corruption . | . . . . . Average Corruption . | . . . . . Corruption Purged . | . . . . . Corruption Blocked . | . . . . . Overload Shots . | . . . . . Overflow Damage 20 | . . . 20 . Projectiles . | . . . . . Explosions 20 | . . . 20 . Melee . | . . . . . Knockbacks . | . . . . . Impact . | . . . . . Kinetic . | . . . . . Secondary . | . . . . . Self-Inflicted Damage 167 | . . . 147 20 Shots 3 | . . . 2 1 Rammed 4 | . . . . 4 Targets Rammed 4 | . . . . 4 Kicked . | . . . . . Crushed . | . . . . . Highest Temperature 294 | 72 294 207 207 263 Average Temperature 91 | 34 106 58 85 128 Received Heat Transfer 777 | . 69 36 171 501 Siege Activations . | . . . . . Robots Corrupted . | . . . . . Combat Hostiles . | . . . . . Parts Fried . | . . . . . Impact Corruptions . | . . . . . Robots Melted . | . . . . . Combat Hostiles . | . . . . . Parts Melted 8 | . 1 . 7 . Heat Transferred 3203 | 200 572 555 1580 296 Parts Sabotaged . | . . . . . Parts Stolen . | . . . . . Parts Stripped . | . . . . . Power Chain Reactions 1 | . . . 1 . Missiles Intercepted . | . . . . . Alert | -11 -10 -9 -8 -8 ------- Run | Jun Mat Mat Mat Gar Peak Influence 381 | 15 144 158 377 381 Initial 154 | . 9 60 44 154 Average 134 | 5 75 79 212 243 Maximum Alert Level 1 | . . . 1 1 Low Security (%) 77 | 100 100 100 45 51 Level 1 22 | . . . 54 48 Level 2 . | . . . . . Level 3 . | . . . . . Level 4 . | . . . . . Level 5 . | . . . . . High Security . | . . . . . Max Security . | . . . . . Squads Dispatched 2 | . . 1 1 . Investigation 1 | . . . 1 . Extermination . | . . . . . Reinforcement 1 | . . 1 . . Assault . | . . . . . Garrison . | . . . . . Intercept . | . . . . . Searches Triggered . | . . . . . Construction Impeded . | . . . . . Haulers Reinforced . | . . . . . Active Scanning Responses . | . . . . . Cargo Convoy Interrupts . | . . . . . Stealth | -11 -10 -9 -8 -8 --------- Run | Jun Mat Mat Mat Gar Distress Signals 5 | . 1 1 1 2 Communications Jammed . | . . . . . Distress Signals . | . . . . . Times Spotted 60 | . 6 9 13 32 Peak Tracking Total 19 | . 3 3 5 19 Tactical Retreats . | . . . . . Traps | -11 -10 -9 -8 -8 ------- Run | Jun Mat Mat Mat Gar Traps Triggered 4 | . 1 . 1 2 Indirectly . | . . . . . Trap Hack Attempts . | . . . . . Triggered . | . . . . . Disarmed . | . . . . . Reprogrammed . | . . . . . Reused . | . . . . . Traps Extracted . | . . . . . Installed . | . . . . . Triggered . | . . . . . Machines | -11 -10 -9 -8 -8 ---------- Run | Jun Mat Mat Mat Gar Machines Disabled 3 | . . . 3 . Max in Single Turn 3 | . . . 3 . Machines Repaired . | . . . . . Machines Sabotaged . | . . . . . Overloaded Fab Kills . | . . . . . Hacking | -11 -10 -9 -8 -8 --------- Run | Jun Mat Mat Mat Gar Machines Accessed 12 | . 1 7 4 . Terminals 11 | . 1 7 3 . Fabricators . | . . . . . Repair Stations . | . . . . . Recycling Units . | . . . . . Scanalyzers . | . . . . . Garrison Access 1 | . . . 1 . Total Hacks 34 | . 3 21 10 . Successful 16 | . 1 10 5 . Failed 18 | . 2 11 5 . Catastrophic 3 | . . 1 2 . Database Lockouts . | . . . . . Manual 23 | . 2 15 6 . Terminals 32 | . 3 21 8 . Fabricators . | . . . . . Repair Stations . | . . . . . Recycling Units . | . . . . . Scanalyzers . | . . . . . Garrison Access 2 | . . . 2 . Terminal Hacks 9 | . 1 6 2 . Prototype ID Bank 2 | . . 2 . . Terminal Index 2 | . . 1 1 . Locate Traps 2 | . . 1 1 . Hauler Manifests 1 | . 1 . . . Registered Components 1 | . . 1 . . Zone Layout 1 | . . 1 . . Fabricator Hacks . | . . . . . Repair Station Hacks . | . . . . . Recycling Unit Hacks . | . . . . . Scanalyzer . | . . . . . Garrison Access Hacks 1 | . . . 1 . Unlock Access 1 | . . . 1 . Unauthorized Hacks 6 | . . 4 2 . Terminals 6 | . . 4 2 . Track 1 | . . . 1 . Botnet 4 | . . 3 1 . Operators 1 | . . 1 . . Fabricators . | . . . . . Repair Stations . | . . . . . Recycling Units . | . . . . . Scanalyzers . | . . . . . Garrison Access . | . . . . . Data Cores Recovered . | . . . . . Used . | . . . . . Hacking Detections 12 | . 1 7 4 . Full Trace Events . | . . . . . Feedback Events . | . . . . . Feedback Blocked . | . . . . . Robot Schematics Acquired . | . . . . . Robots Built . | . . . . . Authchips . | . . . . . Time . | . . . . . Total Robot Build Rating . | . . . . . Part Schematics Acquired . | . . . . . Parts Built . | . . . . . Authchips . | . . . . . Time . | . . . . . Total Part Build Rating . | . . . . . Parts Repaired . | . . . . . Time . | . . . . . Parts Recycled . | . . . . . Recycled Matter . | . . . . . Retrieved Matter . | . . . . . Retrieved Components . | . . . . . Parts Scanalyzed . | . . . . . Part Schematics Acquired . | . . . . . Parts Damaged . | . . . . . Bothacking | -11 -10 -9 -8 -8 ------------ Run | Jun Mat Mat Mat Gar Used RIF Installer . | . . . . . Robots Hacked . | . . . . . Non-combat . | . . . . . Combat . | . . . . . Robot Hacks Applied . | . . . . . Relay Couplers Released . | . . . . . Fabnet Peak Effective % . | . . . . . Robots Rewired . | . . . . . Allies Hacked . | . . . . . Hacks Repelled . | . . . . . Allies | -11 -10 -9 -8 -8 -------- Run | Jun Mat Mat Mat Gar Total Allies . | . . . . . Largest Group . | . . . . . Highest-Rated Group . | . . . . . Highest-Rated Ally . | . . . . . Total Orders . | . . . . . Ally Attacks . | . . . . . Total Damage . | . . . . . Kills . | . . . . . Allies Corrupted . | . . . . . Allies Melted . | . . . . . Intel | -11 -10 -9 -8 -8 ------- Run | Jun Mat Mat Mat Gar Robot Analysis Total . | . . . . . Derelict Logs Recovered . | . . . . . Drone Launches . | . . . . . Drone Recoveries . | . . . . . Exploration | -11 -10 -9 -8 -8 ------------- Run | Jun Mat Mat Mat Gar Turns Passed 1724 | 87 308 597 552 180 Spaces Moved 1185 | 51 206 446 363 119 Core 43 | 18 . . . 25 Treads . | . . . . . Legs 1142 | 33 206 446 363 94 Wheels . | . . . . . Hover . | . . . . . Flight . | . . . . . Fastest Speed 50 | 50 120 120 120 50 Average Speed 118 | 110 120 120 120 105 Slowest Speed 120 | 120 120 120 120 120 Overloaded Moves . | . . . . . Propulsion Burnouts . | . . . . . Robots Hopped . | . . . . . Cave-ins Triggered . | . . . . . Exploration Rate (%) 27 | 4 37 40 27 27 Regions Visited 4 Branch Regions . Pre-discovered Areas . | . . . . . Known Exits Taken 1 | . . . 1 . Unknown Exits Taken 3 | 1 1 1 . . Scrap Searched . | . . . . . Spaces Dug . | . . . . . Terrain Destroyed 53 | . . . 46 7 Melee . | . . . . . Projectile . | . . . . . AOE 53 | . . . 46 7 Terrain Rammed . | . . . . . Walls Destroyed . | . . . . . Machines Disabled . | . . . . . Actions | -11 -10 -9 -8 -8 --------- Run | Jun Mat Mat Mat Gar Total 1386 | 69 238 488 435 156 Wait 35 | 1 10 8 12 4 Move 1181 | 50 205 445 363 118 Hop . | . . . . . Pick Up 29 | 5 6 8 9 1 Fast Attach 9 | 4 1 2 2 . Attach 12 | 3 . 1 3 5 Detach 1 | . . 1 . . Swap 21 | 1 2 4 12 2 Drop 23 | . . 8 13 2 Fire 60 | 5 14 11 21 9 Melee . | . . . . . Ram 4 | . . . . 4 Kick . | . . . . . Crush . | . . . . . Escape Stasis 11 | . . . . 11 Rewire . | . . . . . Trap . | . . . . . Miscellaneous . | . . . . . Route ------- -11/Junkyard -10/Materials -9/Materials (discovered 2 exits: *Mat / [*Min]) -8/Materials -8/Garrison (discovered 1 exit: [*Fac]) History --------- Turn | Location | Event 19 | -11/Junkyard | Discovered new exit (range 15) 88 | -11/Junkyard | Entered Materials 305 | -10/Materials | Build established: Mutant 362 | -10/Materials | Discovered new exit (range 10) 396 | -10/Materials | Entered another Materials area 396 | -9/Materials | Evolved 2 slots: Propulsion x2 552 | -9/Materials | Discovered new exit (range 8) 933 | -9/Materials | Discovered new exit (range 12) 993 | -9/Materials | Entered another Materials area 993 | -8/Materials | Evolved 2 slots: Utility x1, Weapon x1 1302 | -8/Materials | Build established: Scavenger-Tank 1545 | -8/Materials | Identified exit to Garrison 1545 | -8/Materials | Entered Garrison 1634 | -8/Garrison | Triggered checkpoint 1637 | -8/Garrison | Triggered checkpoint 1648 | -8/Garrison | Triggered checkpoint 1652 | -8/Garrison | Triggered checkpoint 1667 | -8/Garrison | Destroyed 8 combat bots 1675 | -8/Garrison | Discovered new exit (range 8) 1684 | -8/Garrison | Attempted to access garrison exit controls, blocked by remote lockdown 1694 | -8/Garrison | Core integrity fell below 50% 1703 | -8/Garrison | Released all parts (6) 1710 | -8/Garrison | Core integrity fell below 20% 1716 | -8/Garrison | Triggered checkpoint 1720 | -8/Garrison | Triggered checkpoint 1725 | -8/Garrison | Destroyed by Y-45 Defender with Heavy Assault Rifle Last Messages --------------- 01704_ Acquired 39 matter. 01705_ Acquired 47 matter. 01705_ Slammed into S-10 Pest. 01706_ Slammed into G-47 Trooper. 01706_ Lgt. Armor Plating destroyed. 01707_ Slammed into G-47 Trooper. 01709_ Critical hit (Burn: +37). 01716_ Beams of light sweep through the air. An alarm sounds. 01720_ Triggered Stasis Trap. 01720_ A bubble of rippling energy engulfs the area. 01720_ Field strength at 94. 01720_ C-30 ARC bursts open, deploying its payload. 01720_ S-10 Pest unfolds itself. 01720_ Field strength at 85. 01721_ Field strength at 77. 01722_ Field strength at 62. 01723_ Field strength at 56. 01724_ Field strength at 42. 01725_ Field strength at 36. 01725_ Y-45 Defender springs to life. Map ----- +----------------------------------------------------+ | | | | | | | ?????????????????????????????????????????????????? | | ?????????????????????????????????????????????????? | | ?????????????????????????????????????????????????? | | ?????????????????????????????????????????????????? | | ?????????????????????????????????????????????????? | | ?????????????????????????????????????????????????? | | ?????????????????????????????????????????????????? | | ?????????????????????????????????????????????????? | | ?????????????????????????????????????????????????? | | ?????????????????????????????????????????????????? | | ?????????????????????????????????????????????????? | | ?????????????????????????????????????????????????? | | ?????????????????????????????????????????????????? | | ?????????????????????????????????????????????????? | | ?????????????????????????????????????????????????? | | ?????????????????????????????????????????????????? | | ?????????????????????????????????????????????????? | | ?????????????????????????????????????????????????? | | ?????????????????????????????????????????????????? | | ?????????????????????????????????????????????????? | | ?????????????????????????????????????????????????? | | ?????????????????#Y ############????????????????? | | ?????????????????#Y @ s #????????????????? | | ?????????????????#Y #### ss### #????????????????? | | ????????????????????????#Cs%#?# #????????????????? | | ????????????????????????##g##?# #????????????????? | | ??????????????????????????g#??# #????????????????? | | ??????????????????????????C#? #????????????????? | | ?????????????????????????? g# #????????????????? | | ??????????????????????????### #????????????????? | | ????????????????????????????### #????????????????? | | ??????????????????????????????# #????????????????? | | ??????????????????????????????# #????????????????? | | ??????????????????????????????# #????????????????? | | ??????????????????????????????# #???#####????????? | | ??????????????????????????????# #???#=!=#????????? | | ????????????????????????????### #####!